bitfinex/quotes_BTCUSD_20260221
["timestamp","ask_amount","ask_price","bid_price","bid_amount"]
[1771638843526,0.07350681,68021.0,68015.0,0.0735124]
[1771638844719,0.07350681,68021.0,68015.0,0.07329898]
[1771638844921,0.07370598,68022.0,68013.0,0.07351361]
[1771638844922,0.07370671,68022.0,68013.0,0.07351361]
[1771638845124,0.0735093,68019.0,68013.0,0.07351361]
[1771638845509,0.0735093,68019.0,68014.0,0.07351419]
[1771638845911,0.0735093,68019.0,68014.0,0.2217383]
[1771638846513,0.07350811,68020.0,68014.0,0.2217383]
[1771638855709,0.07350811,68020.0,68014.0,0.2219583]
[1771638862344,0.07370811,68020.0,68014.0,0.2219583]
[1771638865612,0.07370811,68020.0,68015.0,0.07351306]
[1771638866419,0.07370811,68020.0,68014.0,0.2219583]
[1771638869036,0.07350914,68019.0,68014.0,0.00022]
[1771638869626,0.07350914,68019.0,68014.0,0.07373393]
[1771638870596,0.07370811,68020.0,68014.0,0.07373393]
[1771638871554,0.07351247,68016.0,68010.0,0.0736785]
[1771638871827,0.07370802,68020.0,68014.0,0.07351323]
[1771638872051,0.07350889,68019.0,68013.0,0.073515]
[1771638873819,0.07351008,68018.0,68013.0,0.073515]
[1771638874072,0.07351008,68018.0,68013.0,0.21305193]
[1771638874473,0.07351008,68018.0,68013.0,0.073515]
[1771638875546,0.07351008,68018.0,68013.0,0.073735]
[1771638875943,0.07351008,68018.0,68013.0,0.00022]
[1771638880267,0.07351008,68018.0,68013.0,0.0737353]
[1771638882428,0.07351008,68018.0,68013.0,0.06996472]
[1771638884004,0.0002,68022.0,68010.0,0.16634296]
[1771638884203,0.00016,68030.0,68010.0,0.16634296]
[1771638884204,0.07370504,68023.0,68017.0,0.07351023]
[1771638884795,0.07350617,68022.0,68016.0,0.07351023]
[1771638886424,0.07350685,68021.0,68016.0,0.07351023]
[1771638891165,0.07370617,68022.0,68016.0,0.07351023]
[1771638893774,0.07370617,68022.0,68017.0,0.07351077]
[1771638895684,0.07370617,68022.0,68011.0,0.29428896]
[1771638895685,1e-08,68030.0,68029.0,0.07349806]
[1771638897062,1e-08,68030.0,68020.0,0.19011685]
[1771638897260,0.07349763,68030.0,68024.0,0.07350262]
[1771638898409,0.07349763,68030.0,68013.0,0.29405999]
[1771638898410,1e-08,68030.0,68013.0,0.29405999]
[1771638898560,0.07350165,68026.0,68020.0,0.0735073]
[1771638899596,0.0967284,68027.0,68021.0,0.07350659]
[1771638900267,0.0967284,68027.0,68020.0,0.0735073]
[1771638900474,0.023228,68027.0,68021.0,0.07350614]
[1771638900679,0.023228,68027.0,68022.0,0.07350534]
[1771638901063,0.09672853,68027.0,68021.0,0.07350614]
[1771638904908,0.09672853,68027.0,68022.0,0.07350549]
[1771638906038,0.023228,68027.0,68022.0,0.07350549]
[1771638907250,0.07350082,68028.0,68022.0,0.07350549]
[1771638907945,0.0002,68027.0,68022.0,0.07350549]
[1771638909605,0.07370032,68027.0,68022.0,0.07350549]
[1771638910947,0.0002,68027.0,68022.0,0.07350549]
[1771638911153,0.0002,68027.0,68023.0,0.07350353]
[1771638911508,0.0002,68027.0,68024.0,0.07350314]
[1771638913823,0.0002,68027.0,68023.0,0.07350353]
[1771638914022,0.0002,68027.0,68021.0,0.07350493]
[1771638914251,0.07370056,68027.0,68021.0,0.07350493]
[1771638914457,0.07370056,68027.0,68022.0,0.07350542]
[1771638914619,0.07370056,68027.0,68022.0,0.07372542]
[1771638915404,0.07370056,68027.0,68022.0,0.07372549]
[1771638915938,0.0002,68027.0,68022.0,0.07372549]
[1771638916248,0.07370038,68027.0,68022.0,0.07372549]
[1771638916989,0.0002,68027.0,68022.0,0.07372549]
[1771638917793,0.07370032,68027.0,68022.0,0.07372549]
[1771638917941,0.09793272,68027.0,68019.0,0.29403433]
[1771638918132,0.09793272,68027.0,68021.0,0.07350605]
[1771638918667,0.0244324,68027.0,68022.0,0.07350562]
[1771638918878,0.0244324,68027.0,68021.0,0.07350605]
[1771638919238,0.09793275,68027.0,68021.0,0.07350605]
[1771638921080,0.09793275,68027.0,68022.0,0.07350561]
[1771638922484,0.07350163,68026.0,68020.0,0.07350608]
[1771638922695,0.07350163,68026.0,68018.0,0.29403889]
[1771638922696,0.07350407,68024.0,68018.0,0.07350952]
[1771638925409,0.03805094,68024.0,68018.0,0.07350952]
[1771638925613,0.03805094,68024.0,68019.0,0.0735087]
[1771638925815,0.03805094,68024.0,68019.0,0.21770428]
[1771638926197,0.09773416,68026.0,68020.0,0.07350731]
[1771638926384,0.07350176,68026.0,68020.0,0.07350731]
[1771638927041,0.0002,68027.0,68023.0,0.07350409]
[1771638928033,0.07369889,68030.0,68024.0,0.21769897]
[1771638928254,0.07349825,68029.0,68023.0,0.21769967]
[1771638928590,0.0002,68027.0,68023.0,0.21769967]
[1771638929008,0.0002,68027.0,68023.0,0.07350409]
[1771638932466,0.0002,68027.0,68022.0,0.07350371]
[1771638933482,0.0002,68027.0,68023.0,0.07350453]
[1771638935487,2.992e-05,68027.0,68023.0,0.07350453]
[1771638942761,2.992e-05,68027.0,68023.0,0.07372453]
[1771638947613,0.07349825,68029.0,68024.0,0.1429447]
[1771638948449,0.07349966,68028.0,68024.0,0.1429447]
[1771638948594,0.07349966,68028.0,68023.0,0.00022]
[1771638949000,0.0002,68027.0,68023.0,0.00022]
[1771638949499,0.07370084,68027.0,68023.0,0.00022]
[1771638949731,0.02279525,68026.0,68020.0,0.0735077]
[1771638949928,0.09629758,68026.0,68020.0,0.0735077]
[1771638950155,0.07350233,68026.0,68020.0,0.0735077]
[1771638955551,0.07350233,68026.0,68020.0,0.0737277]
[1771638956377,0.07350233,68026.0,68021.0,0.0735067]
[1771638958158,0.07350233,68026.0,68020.0,0.0737277]
[1771638958363,0.0002,68027.0,68018.0,0.00022]
[1771638958625,0.07350488,68023.0,68018.0,0.07372942]
[1771638958919,0.04958912,68023.0,68018.0,0.00022]
[1771638959123,0.04958912,68023.0,68018.0,0.1431647]
[1771638959880,0.04958912,68023.0,68018.0,0.21667461]
[1771638960087,0.07350419,68024.0,68018.0,0.21667461]
[1771638962234,0.07350419,68024.0,68019.0,0.07350878]
[1771638962394,0.0735018,68026.0,68020.0,0.07350747]
[1771638962793,0.07350277,68025.0,68020.0,0.07350747]
[1771638967946,0.07350277,68025.0,68020.0,0.07372747]
[1771638968815,0.04958701,68025.0,68020.0,0.07372747]
[1771638971573,0.0735018,68026.0,68020.0,0.00022]
[1771638971914,0.0635018,68026.0,68020.0,0.00022]
[1771638972234,0.07350323,68025.0,68020.0,0.00022]
[1771638974623,0.07350323,68025.0,68020.0,0.14557535]
[1771638975967,0.0635018,68026.0,68020.0,0.21908265]
[1771638976190,0.07350245,68025.0,68020.0,0.21908265]
[1771638978111,0.07350245,68025.0,68020.0,0.07372763]
[1771638978593,0.07350245,68025.0,68020.0,0.21908298]
[1771638979945,0.0635018,68026.0,68020.0,0.21908298]
[1771638980629,0.07370023,68027.0,68021.0,0.07350619]
[1771638981649,0.0002,68025.0,68022.0,0.21886086]
[1771638982180,3.392e-05,68025.0,68022.0,0.21886086]
[1771638985515,0.07370023,68027.0,68022.0,0.21886086]
[1771638986233,0.07370023,68027.0,68023.0,0.07350405]
[1771638986234,0.0002,68027.0,68023.0,0.07350405]
[1771638987841,0.0002,68027.0,68022.0,0.21886086]
[1771638988766,0.0002,68027.0,68023.0,0.07350423]
[1771638990325,0.0002,68027.0,68022.0,0.21886086]
[1771638992414,0.0002,68027.0,68023.0,0.21885968]
[1771638992961,0.29418841,68030.0,68024.0,0.07350306]
[1771638992962,0.07369755,68030.0,68024.0,0.07350306]
[1771638993170,0.07349838,68029.0,68024.0,0.21885841]
[1771638994921,0.0002,68027.0,68024.0,0.21885841]
[1771638996886,0.07370067,68027.0,68024.0,0.14535535]
[1771638997222,0.07370067,68027.0,68021.0,0.07350622]
[1771638999132,0.07350134,68026.0,68021.0,0.07350622]
[1771638999653,0.07370067,68027.0,68021.0,0.07350622]
[1771639005739,0.07350149,68026.0,68020.0,0.07372592]
[1771639007132,0.07350244,68025.0,68020.0,0.07372592]
[1771639007332,0.04958667,68025.0,68020.0,0.07372592]
[1771639008912,0.07350149,68026.0,68020.0,0.07372592]
[1771639009302,0.07350277,68025.0,68020.0,0.00022]
[1771639009502,0.07350372,68024.0,68020.0,0.00022]
[1771639010240,0.09760355,68025.0,68020.0,0.00022]
[1771639010455,0.02410078,68025.0,68020.0,0.07372735]
[1771639011025,0.07350257,68025.0,68020.0,0.07372735]
[1771639011545,0.07350257,68025.0,68020.0,0.00022]
[1771639012489,0.07350257,68025.0,68020.0,0.07372747]
[1771639013679,0.07350257,68025.0,68020.0,0.00022]
[1771639013832,0.09760335,68025.0,68020.0,0.00022]
[1771639014043,0.07350562,68023.0,68020.0,0.00022]
[1771639015509,0.05217669,68023.0,68020.0,0.00022]
[1771639015927,0.0735045,68024.0,68020.0,0.00022]
[1771639016473,0.0735045,68024.0,68020.0,0.1471282]
[1771639018440,0.07350176,68026.0,68020.0,0.22063568]
[1771639018880,0.07350249,68025.0,68020.0,0.22063568]
[1771639020468,0.07370249,68025.0,68020.0,0.22063568]
[1771639022584,0.07350491,68023.0,68020.0,0.00022]
[1771639022972,0.07350491,68023.0,68018.0,0.07372977]
[1771639023382,0.07350402,68024.0,68018.0,0.07372977]
[1771639025224,0.07350402,68024.0,68019.0,0.07350885]
[1771639026567,0.07350402,68024.0,68020.0,0.1469082]
[1771639026773,0.07350402,68024.0,68018.0,0.07372977]
[1771639027806,0.07350402,68024.0,68019.0,0.07350884]
[1771639028604,0.07350402,68024.0,68019.0,0.22210397]
[1771639031356,0.0737043,68025.0,68022.0,0.14859513]
[1771639031357,0.0002,68025.0,68022.0,0.14859513]
[1771639031558,0.0002,68027.0,68023.0,0.14859513]
[1771639032150,0.07370024,68027.0,68023.0,0.14859513]
[1771639040351,0.07350132,68026.0,68023.0,0.14859513]
[1771639041292,0.0002,68027.0,68023.0,0.14859513]
[1771639041516,0.07370052,68027.0,68023.0,0.14859513]
[1771639046369,0.07370052,68027.0,68023.0,0.14881513]
[1771639051883,0.0002,68029.0,68023.0,0.14881513]
[1771639052478,0.07350053,68027.0,68023.0,0.14881513]
[1771639054566,0.07350053,68027.0,68023.0,0.00022]
[1771639059334,0.0002,68027.0,68023.0,0.00022]
[1771639059531,0.07350181,68026.0,68023.0,0.00022]
[1771639059936,0.07370211,68027.0,68023.0,0.00022]
[1771639060148,0.07350188,68026.0,68023.0,0.00022]
[1771639064631,0.07350243,68025.0,68023.0,0.00022]
[1771639065466,0.07350188,68026.0,68023.0,0.00022]
[1771639069224,0.07350188,68026.0,68023.0,7.263e-05]
[1771639070445,0.07370191,68027.0,68023.0,7.263e-05]
[1771639071462,0.07350168,68026.0,68023.0,7.263e-05]
[1771639072588,0.07370191,68027.0,68023.0,7.263e-05]
[1771639075311,0.07350179,68026.0,68023.0,7.263e-05]
[1771639078729,0.07370179,68026.0,68023.0,7.263e-05]
[1771639081000,0.0002,68026.0,68023.0,7.263e-05]
[1771639081204,0.07370138,68026.0,68023.0,7.263e-05]
[1771639082833,0.0735029,68025.0,68023.0,7.263e-05]
[1771639083192,0.0735029,68025.0,68019.0,0.07350709]
[1771639083410,0.0735029,68025.0,68020.0,0.07350766]
[1771639083622,0.09650591,68025.0,68020.0,0.07350766]
[1771639084043,0.0735029,68025.0,68020.0,0.07350766]
[1771639085027,0.0735029,68025.0,68019.0,0.07350709]
[1771639085226,0.0735029,68025.0,68023.0,0.00022]
[1771639086136,0.07370304,68026.0,68023.0,0.00022]
[1771639090527,0.07369848,68029.0,68023.0,0.07372421]
[1771639090733,0.07349946,68028.0,68024.0,0.13747125]
[1771639091149,0.07350031,68027.0,68024.0,0.13747125]
[1771639091467,0.07350031,68027.0,68023.0,0.00022]
[1771639092052,0.0002,68026.0,68023.0,0.00022]
[1771639099208,0.07349946,68028.0,68023.0,0.00022]
[1771639099414,0.07349946,68028.0,68023.0,0.13769125]
[1771639100891,0.00024592,68033.0,68027.0,0.07349936]
[1771639101009,0.07374029,68033.0,68027.0,0.07349936]
[1771639104720,0.0002,68030.0,68027.0,0.07349936]
[1771639105302,0.0002,68030.0,68028.0,0.0734986]
[1771639105510,0.0002,68030.0,68027.0,0.07349936]
[1771639105708,0.0001224,68036.0,68025.0,0.0735013]
[1771639106051,0.07348992,68037.0,68031.0,0.0734954]
[1771639106052,0.07349004,68037.0,68031.0,0.0734954]
[1771639107042,0.07349053,68036.0,68031.0,0.0734954]
[1771639107250,0.07349053,68036.0,68031.0,0.2358825]
[1771639107405,0.07349004,68037.0,68031.0,0.2358825]
[1771639107406,0.07349004,68037.0,68031.0,0.23588244]
[1771639107825,0.0734905,68036.0,68031.0,0.23588244]
[1771639108028,0.001,68036.0,68031.0,0.23488244]
[1771639108490,0.07349057,68036.0,68031.0,0.23488244]
[1771639108720,0.07349011,68038.0,68032.0,0.07349482]
[1771639108990,0.07348915,68039.0,68032.0,0.07349482]
[1771639109371,0.07348867,68038.0,68032.0,0.07349482]
[1771639110197,0.07348967,68037.0,68031.0,0.0984099]
[1771639110401,0.29410477,68040.0,68032.0,0.0734947]
[1771639110607,0.07348899,68038.0,68032.0,0.02491585]
[1771639110994,0.07348952,68037.0,68032.0,0.02491585]
[1771639111209,0.0002,68036.0,68032.0,0.02491585]
[1771639111774,0.0002,68036.0,68032.0,0.09841039]
[1771639112991,0.0002,68036.0,68033.0,0.07349327]
[1771639113192,0.0002,68036.0,68032.0,0.09841039]
[1771639113848,0.0002,68036.0,68033.0,0.07349346]
[1771639114173,0.0002,68036.0,68032.0,0.09841039]
[1771639116339,0.0002,68036.0,68032.0,0.02491585]
[1771639118747,0.0002,68036.0,68031.0,0.07349423]
[1771639119108,0.0002,68036.0,68031.0,0.0978613]
[1771639120536,0.07369053,68036.0,68031.0,0.07349423]
[1771639125963,0.07369053,68036.0,68031.0,0.07354015]
[1771639126178,0.07369114,68036.0,68031.0,4.592e-05]
[1771639126347,0.07369114,68036.0,68030.0,0.07349657]
[1771639126511,0.07369114,68036.0,68028.0,0.07349872]
[1771639126512,0.07349327,68034.0,68028.0,0.07349872]
[1771639127244,0.07349327,68034.0,68029.0,0.07349804]
[1771639127411,0.07349327,68034.0,68028.0,0.07349872]
[1771639129804,0.07349327,68034.0,68028.0,0.07371872]
[1771639130016,0.07349158,68035.0,68028.0,0.00022]
[1771639130363,0.07349158,68035.0,68026.0,0.07350099]
[1771639130364,0.07349556,68032.0,68026.0,0.07350099]
[1771639130580,0.07317134,68032.0,68026.0,0.07350099]
[1771639133724,0.07317134,68032.0,68027.0,0.07350007]
[1771639135270,0.0002,68036.0,68032.0,0.07349468]
[1771639135400,0.0002,68036.0,68031.0,0.07349408]
[1771639137276,0.0002,68036.0,68032.0,0.07349417]
[1771639137546,0.0002,68036.0,68031.0,0.07349408]
[1771639138061,0.0002,68036.0,68032.0,0.07349461]
[1771639139567,0.0001224,68049.0,68040.0,0.07348618]
[1771639139710,0.07348247,68044.0,68038.0,0.07348828]
[1771639140318,0.07348347,68043.0,68037.0,0.07348913]
[1771639140526,0.07348347,68043.0,68038.0,0.0734882]
[1771639141174,0.07348247,68044.0,68038.0,0.0734882]
[1771639142626,0.07348326,68043.0,68037.0,0.07348913]
[1771639143013,0.07360676,68042.0,68036.0,0.07348861]
[1771639143868,0.07348784,68039.0,68030.0,0.00016]
[1771639144070,0.07348784,68039.0,68032.0,0.07129412]
[1771639144071,0.07348879,68038.0,68032.0,0.07129412]
[1771639145193,0.07348879,68038.0,68033.0,0.07349342]
[1771639145593,0.09786662,68039.0,68033.0,0.07349342]
[1771639148243,0.09786662,68039.0,68034.0,0.07349255]
[1771639148647,0.07348784,68039.0,68034.0,0.07349255]
[1771639149133,0.07348805,68040.0,68034.0,0.07349255]
[1771639151063,0.07368805,68040.0,68034.0,0.07349255]
[1771639153383,0.07348764,68039.0,68033.0,0.07349342]
[1771639156448,0.07348879,68038.0,68032.0,0.07349291]
[1771639156749,0.07348764,68039.0,68033.0,0.07349346]
[1771639157109,0.07348764,68039.0,68032.0,0.07349291]
[1771639157313,0.0734884,68038.0,68032.0,0.07349291]
[1771639158167,0.0734884,68038.0,68032.0,0.07371291]
[1771639159825,0.0734884,68038.0,68033.0,0.07349361]
[1771639164908,0.07368764,68039.0,68033.0,0.07349361]
[1771639170109,0.07348869,68038.0,68033.0,0.07349361]
[1771639170323,0.07348869,68038.0,68032.0,0.07371429]
[1771639170660,0.07348995,68037.0,68032.0,0.00022]
[1771639170861,0.0002,68039.0,68030.0,0.00016]
[1771639171111,0.07349314,68034.0,68030.0,0.00016]
[1771639171291,0.07349401,68033.0,68027.0,0.07371847]
[1771639171515,0.07355141,68033.0,68027.0,0.07371847]
[1771639172089,0.07349486,68032.0,68027.0,0.00022]
[1771639172276,0.07355317,68033.0,68027.0,0.07371986]
[1771639177382,0.02261503,68033.0,68025.0,0.00022]
[1771639177527,0.02261503,68033.0,68023.0,0.00022]
[1771639177528,0.07349952,68028.0,68023.0,0.00022]
[1771639178661,0.07349835,68029.0,68023.0,0.07372431]
[1771639179506,0.0734994,68028.0,68023.0,0.00022]
[1771639180091,0.0734994,68028.0,68027.0,0.00022]
[1771639182712,0.0735011,68027.0,68021.0,0.07372648]
[1771639183119,0.09605938,68026.0,68021.0,0.00022]
[1771639183325,0.02255763,68026.0,68021.0,0.00022]
[1771639183556,0.02255763,68026.0,68021.0,0.07372639]
[1771639185167,0.07350563,68022.0,68020.0,0.00038]
[1771639185362,0.07350944,68019.0,68013.0,0.07373468]
[1771639185592,0.09606707,68019.0,68013.0,0.07373468]
[1771639185924,0.09606679,68019.0,68013.0,0.07373468]
[1771639186218,0.09606679,68019.0,68013.0,0.00022]
[1771639186219,0.07351427,68014.0,68013.0,0.00022]
[1771639186424,0.07351535,68013.0,68011.0,0.00022]
[1771639186797,0.07351445,68014.0,68011.0,0.00022]
[1771639188218,0.07351445,68014.0,68008.0,0.0737401]
[1771639188219,0.02255763,68019.0,68002.0,0.19555274]
[1771639188530,0.07352166,68008.0,68002.0,0.24537963]
[1771639188674,0.0456308,68012.0,68003.0,0.07352583]
[1771639188675,0.0735213,68009.0,68003.0,0.07352583]
[1771639189072,0.0735213,68009.0,68003.0,0.07352611]
[1771639189277,0.07352108,68008.0,68002.0,0.24537963]
[1771639189685,0.07352285,68007.0,68002.0,0.1718524]
[1771639189909,0.07352285,68007.0,68000.0,0.0151669]
[1771639189910,0.07352292,68006.0,68000.0,0.0151669]
[1771639190315,0.07352292,68006.0,68000.0,0.08869604]
[1771639191690,6.883e-05,68008.0,68002.0,0.07352665]
[1771639191914,6.883e-05,68008.0,68000.0,0.0151669]
[1771639191915,0.0735186,68010.0,68004.0,0.07352462]
[1771639192036,0.0735186,68010.0,68004.0,0.07391581]
[1771639192840,0.001,68008.0,68004.0,0.07391581]
[1771639193091,0.001,68008.0,68004.0,0.19839195]
[1771639193293,0.0735186,68010.0,68004.0,0.19839195]
[1771639195443,0.0735177,68011.0,68005.0,0.0735238]
[1771639195638,0.07351608,68013.0,68004.0,0.29448749]
[1771639195841,0.07351463,68014.0,68008.0,0.19799631]
[1771639197971,0.07351463,68014.0,68005.0,0.12447614]
[1771639198109,0.07351578,68013.0,68007.0,0.07352154]
[1771639200196,0.07351578,68013.0,68005.0,0.12447614]
[1771639200197,0.02255763,68027.0,68010.0,0.00016]
[1771639200374,0.07350518,68023.0,68016.0,0.07351171]
[1771639200595,0.07350604,68022.0,68015.0,0.07351299]
[1771639201855,0.07450604,68022.0,68015.0,0.07351299]
[1771639202082,0.07350604,68022.0,68015.0,0.07351299]
[1771639202288,0.07450604,68022.0,68015.0,0.07351299]
[1771639203023,0.07350604,68022.0,68015.0,0.07351299]
[1771639204413,0.07350604,68022.0,68016.0,0.07351205]
[1771639204940,0.07350686,68021.0,68015.0,0.07351299]
[1771639205260,0.07350604,68022.0,68016.0,0.07351211]
[1771639206535,0.07350675,68021.0,68016.0,0.07351211]
[1771639206940,0.07350604,68022.0,68016.0,0.07351211]
[1771639207809,0.07370604,68022.0,68016.0,0.07351211]
[1771639208455,0.0002,68022.0,68017.0,0.07351007]
[1771639208656,0.07349951,68028.0,68013.0,0.000226]
[1771639208903,0.00016,68030.0,68022.0,0.07350503]
[1771639209078,0.07349964,68028.0,68022.0,0.07350503]
[1771639209886,0.07350031,68027.0,68022.0,0.07350503]
[1771639210272,0.29414852,68030.0,68023.0,0.02439014]
[1771639210608,0.07349975,68028.0,68023.0,0.02439014]
[1771639211316,0.07349905,68029.0,68023.0,0.02439014]
[1771639212291,0.07349905,68029.0,68023.0,0.07350438]
[1771639212491,0.07349905,68029.0,68023.0,0.09789452]
[1771639213034,0.0736588,68030.0,68024.0,0.02439014]
[1771639213327,0.07349849,68029.0,68024.0,0.02439014]
[1771639213938,0.07349921,68028.0,68024.0,0.02439014]
[1771639214140,0.07350061,68027.0,68024.0,0.02439014]
[1771639214356,0.07350178,68026.0,68020.0,0.07350749]
[1771639214764,0.07350512,68023.0,68016.0,0.0737303]
[1771639214971,0.07350512,68023.0,68016.0,0.00022]
[1771639215196,0.07350512,68023.0,68017.0,0.07351038]
[1771639215792,0.07350512,68023.0,68017.0,0.09790052]
[1771639216522,0.07350267,68025.0,68018.0,0.0735089]
[1771639216731,0.07350267,68025.0,68019.0,0.07350836]
[1771639221889,0.07370267,68025.0,68019.0,0.07350836]
[1771639226187,0.07350555,68023.0,68017.0,0.07351091]
[1771639226389,0.07350555,68023.0,68016.0,0.00022]
[1771639226906,0.07350608,68022.0,68016.0,0.07373178]
[1771639229523,0.07350608,68022.0,68019.0,0.00022]
[1771639232342,0.07350608,68022.0,68016.0,0.07373178]
[1771639234707,0.07321206,68022.0,68016.0,0.07373178]
[1771639234922,0.07321206,68022.0,68017.0,0.07351102]
[1771639238525,0.07350346,68024.0,68013.0,0.000226]
[1771639238736,0.07350964,68019.0,68013.0,0.07374099]
[1771639238951,0.07350964,68020.0,68014.0,0.07351373]
[1771639239585,0.07350896,68019.0,68014.0,0.07351373]
[1771639240196,0.07350964,68020.0,68014.0,0.07351373]
[1771639240858,0.02297538,68022.0,68013.0,0.000226]
[1771639241062,0.0735171,68012.0,68006.0,0.07352263]
[1771639241260,0.07351887,68010.0,68005.0,0.0003669]
[1771639241435,0.17640056,68010.0,68005.0,0.0003669]
[1771639241732,0.07351781,68011.0,68005.0,0.0003669]
[1771639242065,0.07351781,68011.0,68005.0,0.07389046]
[1771639242900,0.07351781,68011.0,68006.0,0.07352285]
[1771639243666,0.07351781,68011.0,68007.0,0.00022]
[1771639244084,0.07351807,68012.0,68007.0,0.00022]
[1771639245196,0.07351767,68011.0,68007.0,0.00022]
[1771639245986,0.07351807,68012.0,68007.0,0.00022]
[1771639248808,0.17639976,68012.0,68007.0,0.00022]
[1771639249472,0.07351807,68012.0,68007.0,0.00022]
[1771639251212,0.07351358,68015.0,68009.0,0.07351888]
[1771639255850,0.07351429,68014.0,68009.0,0.07351888]
[1771639256437,0.07351429,68014.0,68009.0,0.07373888]
[1771639257417,0.17639598,68014.0,68009.0,0.07373888]
[1771639258861,0.10288169,68013.0,68009.0,0.07373888]
[1771639259061,0.07351429,68014.0,68009.0,0.00022]
[1771639261035,0.07351429,68014.0,68009.0,0.07373962]
[1771639261539,0.07351429,68014.0,68009.0,0.00022]
[1771639261743,0.07351429,68014.0,68009.0,7.254e-05]
[1771639262976,0.07361389,68014.0,68009.0,7.254e-05]
[1771639263866,0.07361389,68014.0,68008.0,0.07344401]
[1771639264480,0.07361389,68014.0,68008.0,0.07329663]
[1771639265464,0.07361389,68014.0,68008.0,0.07314927]
[1771639267106,0.07361389,68014.0,68008.0,0.07300186]
[1771639269768,0.07361389,68014.0,68008.0,0.07322186]
[1771639270490,0.07351574,68013.0,68008.0,0.07322186]
[1771639270760,0.07361534,68013.0,68008.0,0.07322186]
[1771639273870,0.07361534,68013.0,68008.0,0.07292708]
[1771639275718,0.07361534,68013.0,68008.0,0.00022]
[1771639275928,0.07351802,68011.0,68008.0,0.00022]
[1771639276875,0.07361762,68011.0,68008.0,0.00022]
[1771639277083,0.07351881,68010.0,68008.0,0.00022]
[1771639277334,0.07351881,68010.0,68007.0,0.00022]
[1771639277335,0.08879402,68009.0,68005.0,0.00022]
[1771639277549,0.07352263,68007.0,68005.0,7.267e-05]
[1771639277704,0.07352263,68007.0,68004.0,0.00039119]
[1771639278982,0.07352263,68007.0,68004.0,0.00024388]
[1771639279382,0.16230212,68008.0,68004.0,0.00024388]
[1771639280889,0.08877949,68008.0,68004.0,0.00024388]
[1771639281701,0.08877949,68008.0,68004.0,9.655e-05]
[1771639283665,0.08877949,68008.0,68004.0,0.00031655]
[1771639284093,0.08877949,68008.0,68004.0,0.07384156]
[1771639284473,0.29417489,68016.0,68009.0,0.07351869]
[1771639284474,0.07371329,68015.0,68009.0,0.07351869]
[1771639284677,0.08877949,68013.0,68009.0,0.07351869]
[1771639286152,0.16229499,68013.0,68007.0,0.07352167]
[1771639287533,0.08785889,68013.0,68004.0,0.00031655]
[1771639287723,0.08785889,68010.0,68005.0,0.07352344]
[1771639287926,0.08785889,68010.0,68005.0,0.07352373]
[1771639288325,0.07351805,68011.0,68005.0,0.07352373]
[1771639288958,0.07351805,68011.0,68005.0,0.07337641]
[1771639289223,0.07351805,68011.0,68005.0,0.0732291]
[1771639289364,0.07351919,68010.0,68004.0,0.07383989]
[1771639290583,0.07351805,68011.0,68005.0,0.07352337]
[1771639291199,0.0735187,68010.0,68005.0,0.07352337]
[1771639292342,0.07351805,68011.0,68005.0,0.07352337]
[1771639293379,0.07351884,68010.0,68005.0,0.07352337]
[1771639294529,0.07351884,68010.0,68004.0,0.07384156]
[1771639294530,0.07351995,68009.0,68004.0,0.07384156]
[1771639294880,0.06540302,68009.0,68004.0,0.07384156]
[1771639296047,0.07351884,68010.0,68004.0,0.07384156]
[1771639296260,0.07351994,68009.0,68002.0,0.00022]
[1771639296503,0.07351994,68009.0,68003.0,0.07352613]
[1771639296680,0.07351994,68009.0,68004.0,0.00022]
[1771639301383,0.07351994,68009.0,68004.0,0.07374505]
[1771639301583,0.07351994,68009.0,68004.0,0.07359772]
[1771639302407,0.07351994,68009.0,68004.0,0.07345041]
[1771639303047,0.07351994,68009.0,68004.0,0.09614289]
[1771639304049,0.07371994,68009.0,68004.0,0.09614289]
[1771639304680,0.07371994,68009.0,68004.0,0.07345041]
[1771639305429,0.07371994,68009.0,68003.0,0.07374613]
[1771639305577,0.07352089,68008.0,68003.0,0.07374613]
[1771639305746,0.07371994,68009.0,68003.0,0.07374613]
[1771639307190,0.07371994,68009.0,68004.0,0.07352494]
[1771639308046,0.07371994,68009.0,68004.0,0.09621742]
[1771639309425,0.07371994,68009.0,68004.0,0.07352494]
[1771639315125,0.07371994,68009.0,68004.0,0.07337761]
[1771639315526,0.0735202,68010.0,68004.0,0.07337761]
[1771639315760,0.0002,68014.0,68003.0,0.00022]
[1771639315933,0.07371469,68014.0,68008.0,0.07351988]
[1771639316353,0.07410552,68014.0,68008.0,0.07351988]
[1771639316951,0.07351555,68013.0,68008.0,0.07351988]
[1771639318532,0.07351555,68013.0,68007.0,0.07351988]
[1771639321489,0.07351648,68012.0,68007.0,0.07351988]
[1771639323130,0.07410678,68014.0,68007.0,0.07351988]
[1771639323577,0.07351585,68013.0,68007.0,0.07351988]
[1771639324322,0.07371585,68013.0,68007.0,0.07351988]
[1771639325281,0.07351643,68012.0,68007.0,0.07351988]
[1771639326268,0.07351643,68012.0,68007.0,0.07322527]
[1771639326456,0.07351643,68012.0,68006.0,0.07352107]
[1771639328951,0.07351643,68012.0,68006.0,0.07337376]
[1771639331234,0.07371643,68012.0,68006.0,0.07337376]
[1771639331614,0.07351766,68011.0,68006.0,0.07337376]
[1771639333936,0.07371643,68012.0,68006.0,0.09689802]
[1771639334443,0.0002,68012.0,68004.0,0.07374455]
[1771639334674,0.07352008,68009.0,68004.0,0.00022]
[1771639335733,0.07352081,68008.0,68004.0,0.00022]
[1771639336282,0.07352101,68008.0,68004.0,0.00022]
[1771639336694,0.07352225,68007.0,68004.0,0.00022]
[1771639337297,0.07352101,68008.0,68004.0,0.00022]
[1771639337785,0.07352225,68007.0,68004.0,0.00022]
[1771639337986,0.07352331,68006.0,68004.0,0.00022]
[1771639338298,0.07352225,68007.0,68004.0,0.00022]
[1771639340331,0.07352225,68007.0,68003.0,0.00022]
[1771639340740,0.07352305,68006.0,68003.0,0.00022]
[1771639341159,0.07352305,68006.0,68003.0,7.268e-05]
[1771639341360,0.07352225,68007.0,68003.0,7.268e-05]
[1771639341760,0.07352721,68003.0,68000.0,0.0153869]
[1771639342236,0.0735268,68004.0,68000.0,0.0153869]
[1771639343090,0.07352634,68003.0,68000.0,0.0153869]
[1771639344726,0.0735268,68004.0,68000.0,0.0153869]
[1771639344966,0.07352557,68004.0,68000.0,0.0153869]
[1771639346423,0.07352568,68005.0,68000.0,0.0153869]
[1771639350404,0.07352568,68005.0,68000.0,0.0889163]
[1771639350553,0.07352568,68005.0,68000.0,0.0153869]
[1771639351717,0.07372568,68005.0,68000.0,0.0153869]
[1771639351889,0.07372568,68005.0,68000.0,0.08891615]
[1771639354702,0.07366686,68005.0,68000.0,0.08891615]
[1771639355209,0.07366686,68005.0,68000.0,0.0153869]
[1771639355579,0.07366686,68005.0,68000.0,0.01509231]
[1771639355775,0.07366686,68005.0,68000.0,0.08862163]
[1771639355990,0.07352509,68004.0,67998.0,0.07338239]
[1771639357228,0.07372592,68005.0,67999.0,0.07353013]